fUSD/lending_fUSD_20250216
["ID","MTS","AMOUNT","RATE_DAILY","PERIOD"]
[353226534,1739681446755,-150.0,0.00010647,2]
[353226535,1739681446766,-599.2789637,0.00010685,2]
[353226536,1739681446775,-420.60711233,0.00010722,2]
[353226537,1739681446785,-599.2789637,0.0001074,2]
[353226538,1739681446794,-599.2789637,0.00010767,2]
[353226539,1739681446804,-279.995,0.00010791,2]
[353226540,1739681446813,-158.999,0.00010791,2]
[353226541,1739681446822,-250.0,0.00010791,2]
[353226542,1739681446831,-205.96,0.00010791,2]
[353226543,1739681446841,-170.534,0.00010791,2]
[353226544,1739681446851,-154.913,0.00010791,2]
[353226545,1739681446860,-272.417,0.00010791,2]
[353226546,1739681446870,-1001.77,0.000108,3]
[353226547,1739681446879,-599.2789637,0.00010822,2]
[353226548,1739681446888,-150.0,0.0001083,2]
[353226549,1739681446897,-706.89055241,0.00010835,2]
[353226550,1739681446907,-300.64286617,0.0001084,2]
[353226551,1739681446916,-1000.0,0.00010851,2]
[353226552,1739681446926,-599.2789637,0.00010877,2]
[353226553,1739681446935,-800.77591194,0.000109,2]
[353226554,1739681446945,-599.2789637,0.00010932,2]
[353226555,1739681446955,-1336.62448362,0.0001094,2]
[353226556,1739681446964,-1022.44582714,0.00010956,2]
[353226557,1739681446974,-1379.0,0.00010958,2]
[353226558,1739681446983,-500.0,0.00010958,2]
[353226559,1739681446992,-949.101789,0.00010958,2]
[353226560,1739681447001,-732.188808,0.00010958,2]
[353226561,1739681447010,-500.0,0.00010958,2]
[353226562,1739681447020,-500.0,0.00010958,2]
[353226563,1739681447029,-500.0,0.00010958,2]
[353226564,1739681447039,-505.61322169,0.00010958,2]
[353226565,1739681447049,-500.0,0.00010958,2]
[353226566,1739681447059,-500.0,0.00010958,2]
[353226567,1739681447068,-500.0,0.00010958,2]
[353226568,1739681447078,-500.0,0.00010958,2]
[353226569,1739681447087,-500.0,0.00010958,2]
[353226570,1739681447097,-500.0,0.00010958,2]
[353226571,1739681447106,-505.70156209,0.00010958,2]
[353226572,1739681447116,-500.0,0.00010958,2]
[353226573,1739681447125,-500.0,0.00010958,2]
[353226574,1739681447135,-500.0,0.00010958,2]
[353226575,1739681447144,-500.0,0.00010958,2]
[353226576,1739681447153,-500.0,0.00010958,2]
[353226577,1739681447163,-500.0,0.00010958,2]
[353226578,1739681447172,-500.0,0.00010958,2]
[353226579,1739681447181,-500.0,0.00010958,2]
[353226580,1739681447191,-500.0,0.00010958,2]
[353226581,1739681447200,-500.0,0.00010958,2]
[353226582,1739681447209,-500.0,0.00010958,2]
[353226583,1739681447218,-500.0,0.00010958,2]
[353226584,1739681447227,-500.0,0.00010958,2]
[353226585,1739681447237,-500.0,0.00010958,2]
[353226586,1739681447247,-500.0,0.00010958,2]
[353226587,1739681447257,-500.0,0.00010958,2]
[353226588,1739681447266,-500.0,0.00010958,2]
[353226589,1739681447276,-500.0,0.00010958,2]
[353226590,1739681447285,-500.0,0.00010958,2]
[353226591,1739681447294,-500.0,0.00010958,2]
[353226592,1739681447303,-500.0,0.00010958,2]
[353226593,1739681447313,-500.0,0.00010958,2]
[353226594,1739681447323,-500.0,0.00010958,2]
[353226595,1739681447332,-540.07044602,0.00010958,2]
[353226596,1739681447342,-503.54,0.00010958,2]
[353226597,1739681447351,-500.0,0.00010958,2]
[353226598,1739681447360,-1486.561,0.00010958,2]
[353226599,1739681447370,-500.0,0.00010958,2]
[353226600,1739681447379,-500.0,0.00010958,2]
[353226601,1739681447388,-500.0,0.00010958,2]
[353226602,1739681447398,-500.0,0.00010958,2]
[353226603,1739681447407,-500.0,0.00010958,2]
[353226604,1739681447416,-500.0,0.00010958,2]
[353226605,1739681447426,-500.0,0.00010958,2]
[353226606,1739681447435,-500.0,0.00010958,2]
[353226607,1739681447444,-500.0,0.00010958,2]
[353226608,1739681447453,-500.0,0.00010958,2]
[353226609,1739681447462,-500.0,0.00010958,2]
[353226610,1739681447471,-500.0,0.00010958,2]
[353226611,1739681447481,-500.0,0.00010958,2]
[353226612,1739681447490,-500.0,0.00010958,2]
[353226613,1739681447499,-500.0,0.00010958,2]
[353226614,1739681447508,-500.0,0.00010958,2]
[353226615,1739681447517,-500.0,0.00010958,2]
[353226616,1739681447526,-643.22,0.00010958,2]
[353226617,1739681447536,-500.0,0.00010958,2]
[353226618,1739681447546,-598.14004162,0.00010958,2]
[353226619,1739681447556,-500.0,0.00010958,2]
[353226620,1739681447565,-500.0,0.00010958,2]
[353226621,1739681447575,-737.57,0.00010958,2]
[353226622,1739681447584,-500.0,0.00010958,2]
[353226623,1739681447594,-500.0,0.00010958,2]
[353226624,1739681447603,-500.0,0.00010958,2]
[353226625,1739681447612,-500.0,0.00010958,2]
[353226626,1739681447622,-679.16,0.00010958,2]
[353226627,1739681447631,-840.7,0.00010958,2]
[353226628,1739681447640,-2011.46,0.00010958,2]
[353226629,1739681447650,-533.76,0.00010958,2]
[353226630,1739681447659,-514.85,0.00010958,2]
[353226631,1739681447668,-500.0,0.00010958,2]
[353226632,1739681447678,-567.39,0.00010958,2]
[353226633,1739681447687,-500.0,0.00010958,2]
[353226634,1739681447697,-500.0,0.00010958,2]
[353226635,1739681447706,-500.0,0.00010958,2]
[353226636,1739681447715,-500.0,0.00010958,2]
[353226637,1739681447725,-152.81405472,0.00010958,2]
[353226638,1739681447735,-500.0,0.00010958,2]
[353226639,1739681447744,-500.0,0.00010958,2]
[353226640,1739681447754,-506.31,0.00010958,2]
[353226641,1739681447764,-500.0,0.00010958,2]
[353226642,1739681447774,-500.0,0.00010958,2]
[353226643,1739681447783,-500.0,0.00010958,2]
[353226644,1739681447792,-500.0,0.00010958,2]
[353226645,1739681447802,-500.0,0.00010958,2]
[353226646,1739681447811,-505.10636318,0.00010958,2]
[353226647,1739681447820,-500.0,0.00010958,2]
[353226648,1739681447984,-570.88,0.00010958,2]
[353226649,1739681447995,-507.04648844,0.00010958,7]
[353226650,1739681448006,-500.0,0.00010958,2]
[353226651,1739681448017,-500.0,0.00010958,2]
[353226652,1739681448027,-525.88,0.00010958,2]
[353226653,1739681448037,-875.51,0.00010958,2]
[353226654,1739681448048,-500.0,0.00010958,2]
[353226655,1739681448061,-500.0,0.00010958,2]
[353226656,1739681448073,-500.0,0.00010958,2]
[353226657,1739681448084,-500.0,0.00010958,2]
[353226658,1739681448094,-582.96,0.00010958,2]
[353226659,1739681448104,-500.0,0.00010958,2]
[353226660,1739681448113,-500.0,0.00010958,2]
[353226661,1739681448123,-500.0,0.00010958,2]
[353226662,1739681448132,-500.0,0.00010958,2]
[353226663,1739681448142,-500.0,0.00010958,2]
[353226664,1739681448151,-500.0,0.00010958,2]
[353226665,1739681448161,-1006.85,0.00010958,2]
[353226666,1739681448170,-2030.29,0.00010958,2]
[353226667,1739681448180,-500.0,0.00010958,2]
[353226668,1739681448189,-500.0,0.00010958,2]
[353226669,1739681448199,-510.82,0.00010958,2]
[353226670,1739681448208,-500.0,0.00010958,2]
[353226671,1739681448218,-500.0,0.00010958,2]
[353226672,1739681448227,-500.0,0.00010958,2]
[353226673,1739681448237,-633.58,0.00010958,2]
[353226674,1739681448247,-500.0,0.00010958,2]
[353226675,1739681448257,-500.0,0.00010958,2]
[353226676,1739681448267,-500.0,0.00010958,2]
[353226677,1739681448276,-500.0,0.00010958,2]
[353226678,1739681448286,-395.39578565,0.00010958,2]
[353226679,1739681448295,-623.61,0.00010958,2]
[353226680,1739681448306,-504.21307073,0.00010958,2]
[353226681,1739681448315,-500.0,0.00010958,2]
[353226682,1739681448324,-879.65,0.00010958,2]
[353226683,1739681448333,-500.0,0.00010958,2]
[353226684,1739681448342,-511.49,0.00010958,2]
[353226685,1739681448352,-500.0,0.00010958,2]
[353226686,1739681448362,-500.0,0.00010958,2]
[353226687,1739681448372,-500.0,0.00010958,2]
[353226688,1739681448382,-500.0,0.00010958,2]
[353226689,1739681448392,-500.0,0.00010958,2]
[353226690,1739681448401,-531.22,0.00010958,2]
[353226691,1739681448410,-500.0,0.00010958,2]
[353226692,1739681448419,-500.0,0.00010958,2]
[353226693,1739681448429,-519.89,0.00010958,2]
[353226694,1739681448438,-500.0,0.00010958,2]
[353226695,1739681448448,-500.0,0.00010958,2]
[353226696,1739681448460,-500.0,0.00010958,2]
[353226697,1739681448472,-663.62,0.00010958,2]
[353226698,1739681448483,-500.0,0.00010958,2]
[353226699,1739681448494,-500.0,0.00010958,2]
[353226700,1739681448504,-511.87328274,0.00010958,2]
[353226701,1739681448514,-500.0,0.00010958,2]
[353226702,1739681448525,-500.0,0.00010958,2]
[353226703,1739681448535,-525.83,0.00010958,2]
[353226704,1739681448545,-500.0,0.00010958,2]
[353226705,1739681448556,-221.46749457,0.00010958,2]
[353226706,1739681448566,-500.0,0.00010958,2]
[353226707,1739681448577,-500.0,0.00010958,2]
[353226708,1739681448587,-500.0,0.00010958,2]
[353226709,1739681448597,-500.0,0.00010958,2]
[353226710,1739681448607,-500.0,0.00010958,2]
[353226711,1739681448616,-1353.22,0.00010958,2]
[353226712,1739681448626,-500.0,0.00010958,2]
[353226713,1739681448636,-500.0,0.00010958,2]
[353226714,1739681448646,-500.0,0.00010958,2]
[353226715,1739681448657,-500.0,0.00010958,2]
[353226716,1739681448667,-500.0,0.00010958,2]
[353226717,1739681448678,-500.0,0.00010958,2]
[353226718,1739681448688,-500.0,0.00010958,2]
[353226719,1739681448697,-500.0,0.00010958,2]
[353226720,1739681448707,-500.0,0.00010958,2]
[353226721,1739681448718,-500.0,0.00010958,2]
[353226722,1739681448728,-1351.88,0.00010958,2]
[353226723,1739681448738,-500.0,0.00010958,2]
[353226724,1739681448749,-500.0,0.00010958,2]
[353226725,1739681448759,-544.2,0.00010958,2]
[353226726,1739681448773,-500.0,0.00010958,2]
[353226727,1739681448784,-634.47,0.00010958,2]
[353226728,1739681448794,-500.0,0.00010958,2]
[353226729,1739681448806,-500.0,0.00010958,2]
[353226730,1739681448816,-500.0,0.00010958,2]
[353226731,1739681448826,-500.0,0.00010958,2]
[353226732,1739681448836,-500.0,0.00010958,2]
[353226733,1739681448848,-500.0,0.00010958,2]
[353226734,1739681448858,-500.0,0.00010958,2]
[353226735,1739681448869,-500.0,0.00010958,2]
[353226736,1739681448879,-500.0,0.00010958,2]
[353226737,1739681448889,-616.03,0.00010958,2]
[353226738,1739681448899,-504.34474127,0.00010958,2]
[353226739,1739681448909,-500.0,0.00010958,2]
[353226740,1739681448918,-500.0,0.00010958,2]
[353226741,1739681448928,-500.0,0.00010958,2]
[353226742,1739681448938,-500.0,0.00010958,2]
[353226743,1739681448947,-500.0,0.00010958,2]
[353226744,1739681448958,-500.0,0.00010958,2]
[353226745,1739681448967,-500.0,0.00010958,2]
[353226746,1739681448978,-566.61,0.00010958,2]
[353226747,1739681448989,-500.0,0.00010958,2]
[353226748,1739681448999,-500.0,0.00010958,2]
[353226749,1739681449008,-500.0,0.00010958,2]
[353226750,1739681449019,-500.0,0.00010958,2]
[353226751,1739681449029,-500.0,0.00010958,2]
[353226752,1739681449039,-578.32,0.00010958,2]
[353226753,1739681449050,-395.35693873,0.00010958,2]
[353226754,1739681449062,-712.69,0.00010958,2]
[353226755,1739681449073,-626.0831936,0.00010958,2]
[353226756,1739681449084,-500.0,0.00010958,2]
[353226757,1739681449095,-717.73,0.00010958,2]
[353226758,1739681449105,-500.0,0.00010958,2]
[353226759,1739681449115,-500.0,0.00010958,2]
[353226760,1739681449125,-500.0,0.00010958,2]
[353226761,1739681449136,-500.0,0.00010958,2]
[353226762,1739681449147,-500.0,0.00010958,2]
[353226763,1739681449157,-500.0,0.00010958,2]
[353226764,1739681449167,-506.78,0.00010958,2]
[353226765,1739681449178,-500.0,0.00010958,2]
[353226766,1739681449188,-500.0,0.00010958,2]
[353226767,1739681449199,-500.0,0.00010958,2]
[353226768,1739681449209,-500.0,0.00010958,2]
[353226769,1739681449220,-500.0,0.00010958,2]
[353226770,1739681449230,-619.65,0.00010958,2]
[353226771,1739681449240,-500.0,0.00010958,2]
[353226772,1739681449250,-500.0,0.00010958,2]
[353226773,1739681449261,-500.0,0.00010958,2]
[353226774,1739681449271,-500.0,0.00010958,2]
[353226775,1739681449282,-500.0,0.00010958,2]
[353226776,1739681449293,-500.0,0.00010958,2]
[353226777,1739681449304,-500.0,0.00010958,2]
[353226778,1739681449314,-500.0,0.00010958,2]
[353226779,1739681449324,-500.0,0.00010958,2]
[353226780,1739681449334,-500.0,0.00010958,2]
[353226781,1739681449344,-893.22,0.00010958,2]
[353226782,1739681449355,-500.0,0.00010958,2]
[353226783,1739681449367,-500.0,0.00010958,2]
[353226784,1739681449377,-497.54411396,0.00010958,2]
[353226785,1739681449389,-603.16,0.00010958,2]
[353226786,1739681449399,-501.57,0.00010958,2]
[353226787,1739681449410,-766.82,0.00010958,2]
[353226788,1739681449420,-500.0,0.00010958,2]
[353226789,1739681449432,-500.0,0.00010958,2]
[353226790,1739681449442,-500.0,0.00010958,2]
[353226791,1739681449451,-500.0,0.00010958,2]
[353226792,1739681449460,-340.23123391,0.00010958,2]
[353226793,1739681449471,-500.0,0.00010958,2]
[353226794,1739681449481,-500.0,0.00010958,2]
[353226795,1739681449492,-500.0,0.00010958,2]
[353226796,1739681449503,-500.0,0.00010958,2]
[353226797,1739681449514,-500.0,0.00010958,2]
[353226798,1739681449523,-500.0,0.00010958,2]
[353226799,1739681449534,-503.68313008,0.00010958,2]
[353226800,1739681449546,-500.0,0.00010958,2]
[353226801,1739681449557,-500.0,0.00010958,2]
[353226802,1739681449566,-500.0,0.00010958,2]
[353226803,1739681449577,-636.44,0.00010958,2]
[353226804,1739681449586,-500.0,0.00010958,2]
[353226805,1739681449596,-883.03,0.00010958,2]
[353226806,1739681449606,-500.0,0.00010958,2]
[353226807,1739681449615,-1444.68,0.00010958,2]
[353226808,1739681449625,-556.91,0.00010958,2]
[353226809,1739681449635,-517.68323026,0.00010958,2]
[353226810,1739681449645,-500.0,0.00010958,2]
[353226811,1739681449654,-523.95,0.00010958,2]
[353226812,1739681449664,-585.14,0.00010958,2]
[353226813,1739681449674,-500.0,0.00010958,2]
[353226814,1739681449684,-500.0,0.00010958,2]
[353226815,1739681449693,-500.0,0.00010958,2]
[353226816,1739681449703,-500.0,0.00010958,2]
[353226817,1739681449713,-500.0,0.00010958,2]
[353226818,1739681449722,-541.68,0.00010958,2]
[353226819,1739681449732,-500.0,0.00010958,2]
[353226820,1739681449741,-500.0,0.00010958,2]
[353226821,1739681449750,-500.0,0.00010958,2]
[353226822,1739681449760,-500.0,0.00010958,2]
[353226823,1739681449774,-540.1,0.00010958,2]
[353226824,1739681449784,-500.0,0.00010958,2]
[353226825,1739681449793,-500.0,0.00010958,2]
[353226826,1739681449803,-500.0,0.00010958,2]
[353226827,1739681449813,-1738.21,0.00010958,2]
[353226828,1739681449823,-500.0,0.00010958,2]
[353226829,1739681449832,-500.0,0.00010958,2]
[353226830,1739681449843,-964.12,0.00010958,2]
[353226831,1739681449852,-1006.13,0.00010958,2]
[353226832,1739681449861,-500.0,0.00010958,2]
[353226833,1739681449871,-820.03,0.00010958,2]
[353226834,1739681449880,-657.3,0.00010958,2]
[353226835,1739681449889,-222.62524569,0.00010958,2]
[353226836,1739681449899,-5012.18997555,0.00010958,2]
[353226837,1739681449908,-500.0,0.00010958,2]
[353226838,1739681449918,-1196.52,0.00010958,2]
[353226839,1739681449928,-582.25,0.00010958,2]
[353226840,1739681449937,-500.0,0.00010958,2]
[353226841,1739681449946,-712.34,0.00010958,2]
[353226842,1739681449955,-1411.27,0.00010958,2]
[353226843,1739681449964,-500.0,0.00010958,2]
[353226844,1739681449974,-500.0,0.00010958,2]
[353226845,1739681449983,-500.0,0.00010958,2]
[353226846,1739681449993,-2091.25,0.00010958,2]
[353226847,1739681450002,-496.02054616,0.00010958,2]
[353226848,1739681450011,-500.0,0.00010958,2]
[353226849,1739681450021,-500.0,0.00010958,2]
[353226850,1739681450030,-1203.24,0.00010958,2]
[353226851,1739681450040,-625.13,0.00010958,2]
[353226852,1739681450049,-683.48,0.00010958,2]
[353226853,1739681450058,-500.0,0.00010958,2]
[353226854,1739681450067,-500.0,0.00010958,2]
[353226855,1739681450078,-500.0,0.00010958,2]
[353226856,1739681450087,-1079.11,0.00010958,2]
[353226857,1739681450096,-500.0,0.00010958,2]
[353226858,1739681450106,-961.57,0.00010958,2]
[353226859,1739681450115,-864.69,0.00010958,2]
[353226860,1739681450124,-500.0,0.00010958,2]
[353226861,1739681450134,-924.47,0.00010958,2]
[353226862,1739681450143,-500.0,0.00010958,2]
[353226863,1739681450153,-2505.01,0.00010958,2]
[353226864,1739681450162,-1732.89,0.00010958,2]
[353226865,1739681450172,-899.53,0.00010958,2]
[353226866,1739681450181,-1618.46,0.00010958,2]
[353226867,1739681450191,-500.0,0.00010958,2]
[353226868,1739681450199,-500.0,0.00010958,2]
[353226869,1739681450208,-1340.94,0.00010958,2]
[353226870,1739681450218,-2161.33,0.00010958,2]
[353226871,1739681450227,-732.05,0.00010958,2]
[353226872,1739681450236,-626.11,0.00010958,2]
[353226873,1739681450245,-500.0,0.00010958,2]
[353226874,1739681450255,-500.0,0.00010958,2]
[353226875,1739681450264,-1263.35,0.00010958,2]
[353226876,1739681450274,-500.0,0.00010958,2]
[353226877,1739681450283,-1068.77,0.00010958,2]
[353226878,1739681450293,-625.37,0.00010958,2]
[353226879,1739681450303,-727.08,0.00010958,2]
[353226880,1739681450313,-893.49,0.00010958,2]
[353226881,1739681450322,-500.0,0.00010958,2]
[353226882,1739681450332,-500.0,0.00010958,2]
[353226883,1739681450341,-1157.91,0.00010958,2]
[353226884,1739681450351,-1365.15,0.00010958,2]
[353226885,1739681450361,-500.0,0.00010958,2]
[353226886,1739681450370,-749.56,0.00010958,2]
[353226887,1739681450504,-500.0,0.00010958,2]
[353226888,1739681450514,-536.03,0.00010958,2]
[353226889,1739681450523,-500.0,0.00010958,2]
[353226890,1739681450533,-3391.14,0.00010958,2]
[353226891,1739681450542,-500.0,0.00010958,2]
[353226892,1739681450551,-1111.31,0.00010958,2]
[353226893,1739681450560,-1293.41,0.00010958,2]
[353226894,1739681450569,-505.12657271,0.00010958,2]
[353226895,1739681450578,-669.89,0.00010958,2]
[353226896,1739681450589,-1487.31,0.00010958,2]
[353226897,1739681450598,-728.68,0.00010958,2]
[353226898,1739681450607,-2797.7,0.00010958,2]
[353226899,1739681450616,-500.0,0.00010958,2]
[353226900,1739681450624,-1542.25,0.00010958,2]
[353226901,1739681450633,-1112.26445802,0.00010958,2]
[353226902,1739681450993,-216.06554198,0.00010958,2]
[353226903,1739681451003,-35.03519533,0.00010958,2]
[353226904,1739682006816,162.32,7.848e-05,2]
[353226905,1739682153025,702.19,8.219e-05,2]
[353226907,1739682631786,-300.0,8.835e-05,2]
[353226908,1739682631795,-122.2011121,8.836e-05,2]
[353226909,1739682631808,-5162.91080713,8.836e-05,2]
[353226910,1739682631819,-22569.38168077,8.836e-05,2]
[353226911,1739682631828,-500.0,8.836e-05,2]
[353226912,1739682631837,-500.0,8.836e-05,2]
[353226913,1739682631847,-500.0,8.836e-05,2]
[353226914,1739682631857,-174.0998179,8.836e-05,2]
[353226915,1739682631866,-23261.00718923,8.836e-05,2]
[353226916,1739682631875,-200.0,8.836e-05,2]
[353226917,1739682631884,-1554.93764028,8.836e-05,2]
[353226918,1739682631896,-173.14,9.38e-05,2]
[353226919,1739682631907,-1470.11,9.434e-05,2]
[353226920,1739682631916,-1852.42,9.476e-05,2]
[353226921,1739682631925,-420.0,9.718e-05,2]
[353226922,1739682631935,-200.0,9.719e-05,2]
[353226923,1739682631944,-200.0,9.719e-05,2]
[353226924,1739682631953,-156.69,9.813e-05,2]
[353226925,1739682631962,-156.69,9.825e-05,2]
[353226926,1739682631971,-156.69,9.837e-05,2]
[353226927,1739682631981,-156.69,9.849e-05,2]
[353226928,1739682631990,-156.69,9.862e-05,2]
[353226929,1739682631999,-6823.83,9.91e-05,2]
[353226930,1739682632008,-150.0,9.912e-05,2]
[353226931,1739682632017,-150.0,9.912e-05,2]
[353226932,1739682632026,-2636.03244035,9.921e-05,2]
[353226933,1739682632035,-16532.843247,9.925e-05,2]
[353226934,1739682632044,-16532.843247,9.931e-05,2]
[353226935,1739682632054,-3140.24256557,9.932e-05,2]
[353226936,1739682632063,-3140.24256557,9.933e-05,2]
[353226937,1739682632071,-16532.843247,9.935e-05,2]
[353226938,1739682632081,-3140.24256557,9.949e-05,2]
[353226939,1739682632090,-200.0,9.951e-05,2]
[353226941,1739682632100,-2636.03244035,9.957e-05,2]
[353226943,1739682632109,-16532.843247,9.958e-05,2]
[353226944,1739682632118,-34771.62935001,9.96e-05,2]
[353226945,1739682632127,-1000.0,9.963e-05,2]
[353226946,1739682632136,-2636.03244035,9.969e-05,2]
[353226947,1739682632146,-34771.62935001,9.972e-05,2]
[353226948,1739682632155,-34771.62935001,9.973e-05,2]
[353226950,1739682632165,-3140.24256557,9.977e-05,2]
[353226952,1739682632174,-34771.62935001,9.981e-05,2]
[353226954,1739682632183,-2636.03244035,9.983e-05,2]
[353226956,1739682632192,-15663.28423981,0.0001,2]
[353226958,1739682632201,-209.53266591,0.0001,2]
[353226960,1739682632211,-250.0,0.00010011,2]
[353226962,1739682632221,-3802.94,0.00010024,2]
[353226964,1739682632230,-12078.87635444,0.0001003,2]
[353226966,1739682632242,-1143.87326722,0.0001003,2]
[353226969,1739682632253,-567.5622537,0.0001003,2]
[353226971,1739682632264,-1298.24234568,0.0001003,2]
[353226973,1739682632275,-1028.79,0.0001003,2]
[353226975,1739682632286,-7782.65577896,0.0001003,2]
[353226977,1739682632295,-700.0,0.00010058,2]
[353226980,1739682632304,-2026.0,0.00010376,2]
[353226983,1739682632313,-1274.0,0.00010376,2]
[353226986,1739682632322,-638.0,0.00010376,2]
[353226988,1739682632331,-569.0,0.00010376,2]
[353226990,1739682632340,-1787.0,0.00010376,2]
[353226991,1739682632349,-2955.349,0.00010376,2]
[353226993,1739682632358,-908.0,0.00010376,2]
[353226995,1739682632367,-1262.001,0.00010376,2]
[353226997,1739682632377,-539.0,0.00010413,2]
[353226999,1739682632386,-150.0,0.00010413,2]
[353227001,1739682632395,-1008.0,0.00010413,2]
[353227003,1739682632404,-3917.0,0.00010413,2]
[353227005,1739682632414,-702.19,0.00010444,2]
[353227006,1739682632423,-150.0,0.00010463,2]
[353227007,1739682632432,-150.0,0.00010463,2]
[353227008,1739682632441,-150.0,0.00010687,2]
[353227009,1739682632451,-150.399,0.00010687,2]
[353227010,1739682632460,-587.0,0.0001069,2]
[353227011,1739682632471,-1063.75856062,0.00010739,2]
[353227012,1739682632481,-1112.4467898,0.00010739,2]
[353227013,1739682632492,-1054.0,0.000108,2]
[353227014,1739682632503,-382.73144724,0.00010858,2]
[353227015,1739682632512,-250.0,0.00010892,2]
[353227016,1739682632522,-207.26195141,0.0001094,2]
[353227017,1739682632532,-500.0,0.00010958,2]
[353227018,1739682632541,-500.0,0.00010958,2]
[353227019,1739682632555,-500.0,0.00010958,2]
[353227020,1739682632565,-500.0,0.00010958,2]
[353227021,1739682632574,-402.9585279,0.00010958,2]
[353227022,1739682632583,-500.0,0.00010958,2]
[353227023,1739682632593,-500.0,0.00010958,2]
[353227024,1739682632602,-200.0,0.00010958,2]
[353227025,1739682632611,-500.0,0.00010958,2]
[353227026,1739682632620,-500.0,0.00010958,2]
[353227027,1739682632632,-1927.65,0.00010958,2]
[353227028,1739682632642,-500.0,0.00010958,2]
[353227029,1739682632651,-500.0,0.00010958,2]
[353227030,1739682632660,-500.0,0.00010958,2]
[353227031,1739682632671,-500.0,0.00010958,2]
[353227032,1739682632681,-500.0,0.00010958,2]
[353227033,1739682632690,-505.47726877,0.00010958,2]
[353227034,1739682632699,-500.0,0.00010958,2]
[353227035,1739682632708,-500.0,0.00010958,2]
[353227036,1739682632717,-500.0,0.00010958,2]
[353227037,1739682632726,-500.0,0.00010958,2]
[353227038,1739682632735,-500.0,0.00010958,2]
[353227039,1739682632744,-500.0,0.00010958,2]
[353227040,1739682632753,-500.0,0.00010958,2]
[353227041,1739682632764,-500.0,0.00010958,2]
[353227042,1739682632774,-500.0,0.00010958,2]
[353227043,1739682632783,-1503.661,0.00010958,2]
[353227044,1739682632793,-500.0,0.00010958,2]
[353227045,1739682632802,-500.0,0.00010958,2]
[353227046,1739682632811,-500.0,0.00010958,2]
[353227047,1739682632820,-500.0,0.00010958,2]
[353227048,1739682632833,-500.0,0.00010958,2]
[353227049,1739682632846,-500.0,0.00010958,2]
[353227050,1739682632856,-500.0,0.00010958,2]
[353227051,1739682632866,-500.0,0.00010958,2]
[353227052,1739682632875,-909.555881,0.00010958,2]
[353227053,1739682632885,-500.0,0.00010958,2]
[353227054,1739682632894,-500.0,0.00010958,2]
[353227055,1739682632905,-500.0,0.00010958,2]
[353227056,1739682632914,-500.0,0.00010958,2]
[353227057,1739682632923,-500.0,0.00010958,2]
[353227058,1739682632932,-500.0,0.00010958,2]
[353227059,1739682632941,-728.011184,0.00010958,2]
[353227060,1739682632950,-500.0,0.00010958,2]
[353227061,1739682632960,-500.0,0.00010958,2]
[353227062,1739682632969,-500.0,0.00010958,2]
[353227063,1739682632978,-924.83,0.00010958,2]
[353227064,1739682632988,-500.0,0.00010958,2]
[353227065,1739682633000,-500.0,0.00010958,2]
[353227066,1739682633010,-500.0,0.00010958,2]